bitfinex/quotes_SOLUSD_20260108
["timestamp","ask_amount","ask_price","bid_price","bid_amount"]
[1767848911486,0.69039956,137.91,137.86,7.25331305]
[1767848911796,0.69039956,137.9,137.86,7.25331305]
[1767848914185,0.69039956,137.9,137.85,13.24]
[1767848914186,0.69546754,137.89,137.85,13.24]
[1767848914388,0.69546754,137.89,137.82,24.81893964]
[1767848914593,0.69546754,137.89,137.83,13.24]
[1767848915283,0.69546754,137.88,137.83,13.24]
[1767848916384,0.69546754,137.88,137.8,18.14146866]
[1767848916586,0.69546754,137.88,137.81,13.52432314]
[1767848916780,0.69546754,137.88,137.81,13.24]
[1767848917199,5.41216913,137.87,137.81,13.24]
[1767848917396,7.94924087,137.86,137.81,20.49635797]
[1767848917601,7.91924088,137.86,137.81,20.52635796]
[1767848920382,7.88924089,137.86,137.81,20.52635796]
[1767848921503,25.3825513,137.89,137.81,20.52635796]
[1767848922586,0.69546754,137.88,137.81,20.52635796]
[1767848923709,0.69546754,137.86,137.81,20.52635796]
[1767848925416,0.69546754,137.86,137.82,0.05999998]
[1767848925917,0.69546754,137.85,137.81,13.29999998]
[1767848927391,0.66546755,137.85,137.81,13.29999998]
[1767848927593,0.63546756,137.85,137.81,13.29999998]
[1767848927890,7.88973384,137.85,137.81,13.29999998]
[1767848929010,7.25426628,137.85,137.8,7.37668518]
[1767848929318,7.25426628,137.85,137.81,0.11999996]
[1767848929612,7.94973382,137.85,137.81,0.11999996]
[1767848930721,15.34973382,137.85,137.81,0.11999996]
[1767848935524,8.06546755,137.85,137.81,7.3763668]
[1767848937522,15.31975163,137.85,137.81,0.11999996]
[1767848938507,8.06546755,137.85,137.81,0.11999996]
[1767848939013,8.06546755,137.85,137.81,7.37635529]
[1767848940526,7.4,137.85,137.82,0.14999995]
[1767848940730,0.69546754,137.92,137.84,0.14999995]
[1767848940928,0.69546754,137.92,137.87,0.14999995]
[1767848941131,0.69546754,137.92,137.87,13.24]
[1767848941528,0.69546754,137.92,137.85,0.14999995]
[1767848942529,0.6778055,137.9,137.85,7.40401188]
[1767848944042,0.6778055,137.9,137.86,7.40357159]
[1767848944228,0.6778055,137.9,137.86,20.64357159]
[1767848944620,0.6778055,137.9,137.87,0.14999995]
[1767848944821,0.6778055,137.92,137.87,0.14999995]
[1767848945936,0.6778055,137.92,137.87,7.40293028]
[1767848946111,0.6778055,137.92,137.88,0.14999995]
[1767848948817,7.92749681,137.94,137.89,0.14999995]
[1767848949020,0.6778055,137.93,137.89,0.14999995]
[1767848950943,0.6778055,137.93,137.88,20.64245779]
[1767848951129,0.7186633,137.92,137.87,7.40300451]
[1767848951333,0.7186633,137.92,137.87,20.64300451]
[1767848952543,7.9186633,137.92,137.88,7.40265003]
[1767848952727,0.7186633,137.92,137.88,7.40265003]
[1767848953443,0.7186633,137.92,137.89,0.14999995]
[1767848953617,0.7186633,137.93,137.89,0.14999995]
[1767848954720,0.7186633,137.93,137.89,7.40169686]
[1767848954927,0.7186633,137.93,137.89,20.64169686]
[1767848956845,0.7186633,137.93,137.9,0.14999995]
[1767848957135,7.96780754,137.95,137.9,0.14999995]
[1767848957327,0.7186633,137.94,137.9,0.14999995]
[1767848957726,0.7186633,137.94,137.89,20.64169686]
[1767848961426,0.7186633,137.95,137.91,0.14999995]
[1767848961731,0.7186633,137.96,137.91,0.14999995]
[1767848962040,0.7186633,137.95,137.9,0.43432309]
[1767848962343,0.7186633,137.94,137.9,0.14999995]
[1767848962952,0.7186633,137.94,137.9,7.40153606]
[1767848966438,0.7186633,137.94,137.9,20.64153606]
[1767848969918,0.7186633,137.94,137.9,13.24]
[1767848970137,0.7186633,137.94,137.88,20.64244564]
[1767848970138,0.7186633,137.93,137.88,20.64244564]
[1767848970339,0.7186633,137.93,137.88,7.40244564]
[1767848970640,0.7186633,137.93,137.88,20.64244564]
[1767848970846,0.7186633,137.93,137.89,7.25202053]
[1767848971424,0.7186633,137.92,137.89,7.25202053]
[1767848972632,0.7186633,137.92,137.88,13.24]
[1767848972826,0.68064549,137.91,137.86,20.49344408]
[1767848973028,0.68064549,137.91,137.87,7.25318155]
[1767848974046,0.68064549,137.91,137.86,20.49364682]
[1767848975934,0.68064549,137.91,137.86,20.64364677]
[1767848976242,0.68064549,137.9,137.86,20.49364682]
[1767848976821,0.68064549,137.9,137.86,20.64364677]
[1767848982355,0.68064549,137.9,137.86,7.40364677]
[1767848982537,0.68064549,137.9,137.86,20.64364677]
[1767848983949,0.68064549,137.9,137.87,0.14999995]
[1767848984150,0.68064549,137.91,137.87,0.14999995]
[1767848984352,0.68064549,137.91,137.87,7.40288422]
[1767848989836,0.68064549,137.91,137.87,7.25288427]
[1767848990034,7.93183554,137.91,137.86,20.64356805]
[1767848990266,0.68064549,137.9,137.86,20.64356805]
[1767848991454,0.68064549,137.9,137.86,20.4935681]
[1767848991858,0.68064549,137.9,137.86,20.64356805]
[1767848994854,0.68064549,137.92,137.87,0.14999995]
[1767848995045,14.45024063,137.93,137.87,0.14999995]
[1767848995046,6.10655955,137.91,137.87,0.14999995]
[1767848995346,0.68064549,137.91,137.87,0.14999995]
[1767848997259,0.68064549,137.91,137.87,7.40292367]
[1767848997969,0.68064549,137.91,137.86,20.64361233]
[1767848998853,0.68064549,137.9,137.86,20.64361233]
[1767848999285,0.68064549,137.89,137.86,13.38999995]
[1767848999437,0.68064549,137.89,137.83,75.28999995]
[1767848999773,0.68064549,137.89,137.83,13.38999995]
[1767849000770,0.68064549,137.88,137.83,13.38999995]
[1767849001662,0.68064549,137.88,137.84,0.14999995]
[1767849002859,0.68064549,137.88,137.84,7.40430532]
[1767849005062,0.6724074,137.87,137.83,20.49496047]
[1767849005269,0.6724074,137.87,137.83,20.64496042]
[1767849006074,0.6724074,137.87,137.84,7.25476377]
[1767849007366,0.6724074,137.87,137.83,20.64480958]
[1767849007572,0.6724074,137.87,137.83,7.40480958]
[1767849007774,0.6724074,137.87,137.83,20.64480958]
[1767849011250,0.6724074,137.87,137.83,7.40480958]
[1767849011453,0.6724074,137.87,137.83,20.64480958]
[1767849012468,0.69813859,137.86,137.83,13.24]
[1767849013081,0.69813859,137.86,137.8,7.406475]
[1767849013263,0.69813859,137.86,137.8,20.646475]
[1767849013573,0.69813859,137.86,137.81,0.14999995]
[1767849014856,0.69813859,137.85,137.81,0.14999995]
[1767849015268,0.69813859,137.86,137.82,0.14999995]
[1767849015661,31.37114627,137.89,137.83,0.14999995]
[1767849015662,0.69813859,137.87,137.83,0.14999995]
[1767849015866,0.6681386,137.87,137.84,0.17999994]
[1767849016176,0.6681386,137.87,137.83,13.24]
[1767849016382,0.6681386,137.87,137.83,13.41999994]
[1767849017281,0.6681386,137.87,137.83,20.67491556]
[1767849017656,0.63813861,137.87,137.83,20.67491556]
[1767849017959,0.63813861,137.87,137.84,0.20999993]
[1767849019279,0.63813861,137.87,137.83,20.70491555]
[1767849021986,0.63813861,137.87,137.84,0.20999993]
[1767849022164,0.69813859,137.89,137.85,0.20999993]
[1767849024779,0.69813859,137.89,137.86,7.4637356]
[1767849026968,0.69813859,137.89,137.86,20.7037356]
[1767849027376,1.49813859,137.9,137.86,20.7037356]
[1767849027676,1.49813859,137.9,137.87,0.20999993]
[1767849028264,1.49813859,137.9,137.86,20.7037356]
[1767849032791,0.65466978,137.89,137.86,20.7037356]
[1767849034798,1.45466978,137.9,137.86,20.7037356]
[1767849036092,0.65466978,137.89,137.86,20.7037356]
[1767849037592,0.65466978,137.89,137.86,20.49373567]
[1767849038592,1.45466978,137.9,137.87,0.20999993]
[1767849039794,1.45466978,137.9,137.87,7.46292172]
[1767849043193,0.65466978,137.9,137.87,7.46292172]
[1767849044094,0.65466978,137.9,137.87,0.20999993]
[1767849044268,0.65466978,137.89,137.86,13.24]
[1767849044472,0.65466978,137.89,137.82,0.20999993]
[1767849044686,0.65466978,137.87,137.79,0.20999993]
[1767849044870,0.65466978,137.85,137.79,0.20999993]
[1767849045073,0.65466978,137.85,137.8,13.24]
[1767849045595,0.65466978,137.84,137.8,13.24]
[1767849047485,0.65466978,137.82,137.78,7.66771895]
[1767849047690,0.65466978,137.82,137.78,20.90771895]
[1767849048074,0.65466978,137.82,137.78,0.2]
[1767849049588,0.65466978,137.81,137.78,0.2]
[1767849051487,0.62466979,137.81,137.78,0.2]
[1767849052305,0.62466979,137.81,137.78,7.45772394]
[1767849053703,0.62466979,137.81,137.78,7.69772386]
[1767849057205,0.62466979,137.81,137.78,0.2]
[1767849058015,0.62466979,137.81,137.78,7.45786028]
[1767849061409,0.5946698,137.81,137.78,7.45786028]
[1767849061705,0.5946698,137.81,137.78,0.2]
[1767849065610,0.71746359,137.8,137.77,0.2]
[1767849065810,0.6874636,137.8,137.77,0.2]
[1767849066902,0.6874636,137.8,137.77,7.95843471]
[1767849067895,0.65746361,137.8,137.77,7.95843471]
[1767849068302,0.65746361,137.8,137.77,7.45843481]
[1767849069825,0.65746361,137.8,137.77,0.2]
[1767849070699,0.71746359,137.82,137.78,0.52999989]
[1767849071028,0.71746359,137.82,137.79,13.76999989]
[1767849072019,0.71746359,137.82,137.79,21.02740416]
[1767849073623,0.71746359,137.82,137.79,13.24]
[1767849074312,0.71746359,137.82,137.78,7.25776682]
[1767849076534,0.71746359,137.81,137.77,13.44]
[1767849076831,0.71746359,137.81,137.77,0.2]
[1767849077202,0.71746359,137.81,137.77,7.45843223]
[1767849079332,0.71746359,137.8,137.77,0.2]
[1767849083108,0.71746359,137.79,137.74,0.88699414]
[1767849083608,0.71746359,137.78,137.74,0.88699414]
[1767849084925,0.71746359,137.78,137.75,0.68699414]
[1767849085116,0.71746359,137.82,137.75,13.92699414]
[1767849085431,0.71746359,137.82,137.76,0.68699414]
[1767849086225,0.71746359,137.81,137.76,0.68699414]
[1767849086400,0.71746359,137.81,137.77,0.68699414]
[1767849087729,0.71746359,137.8,137.77,0.68699414]
[1767849088711,0.71746359,137.8,137.74,0.88699414]
[1767849088919,0.71746359,137.78,137.74,0.88699414]
[1767849089925,7.97545722,137.78,137.74,0.88699414]
[1767849090528,0.71746359,137.77,137.74,0.88699414]
[1767849090734,0.71746359,137.77,137.72,0.2]
[1767849091732,0.42326115,137.75,137.72,0.2]
[1767849094437,0.12052157,137.74,137.69,0.2]
[1767849094731,0.04500011,137.72,137.67,0.88582509]
[1767849105234,0.04500011,137.72,137.68,0.68582509]
[1767849106430,25.41203803,137.73,137.68,0.68582509]
[1767849106645,7.26058229,137.73,137.68,0.68582509]
[1767849106839,0.04500011,137.74,137.68,0.68582509]
[1767849106840,7.26027144,137.74,137.68,0.68582509]
[1767849107246,7.26027144,137.74,137.69,0.68582509]
[1767849107736,7.30527155,137.74,137.69,0.68582509]
[1767849110051,0.04500011,137.73,137.68,0.68582509]
[1767849114238,25.45540949,137.74,137.68,0.68582509]
[1767849114436,25.45540949,137.74,137.69,0.68582509]
[1767849114437,7.30527155,137.74,137.69,0.68582509]
[1767849115458,20.51973089,137.75,137.69,0.68582509]
[1767849116242,20.51973089,137.75,137.7,0.68582509]
[1767849116560,20.564731,137.75,137.7,0.68582509]
[1767849118260,7.304731,137.75,137.7,0.68582509]
[1767849118742,7.30422712,137.76,137.71,0.68582509]
[1767849119851,7.30347437,137.77,137.72,0.68582509]
[1767849120157,0.04500011,137.76,137.72,0.68582509]
[1767849121063,3.3,137.75,137.72,0.68582509]
[1767849122967,0.04500011,137.79,137.72,7.26076356]
[1767849123264,0.04500011,137.79,137.72,20.52076356]
[1767849123455,0.04500011,137.79,137.73,0.7025185]
[1767849123966,7.25813968,137.78,137.73,0.7025185]
[1767849124267,0.68978484,137.8,137.74,0.7025185]
[1767849126371,7.9461523,137.81,137.76,0.7025185]
[1767849127865,7.25636746,137.81,137.77,0.7025185]
[1767849128065,20.69461561,137.82,137.77,0.7025185]
[1767849131559,20.69461561,137.82,137.78,0.7025185]
[1767849133659,7.43461561,137.82,137.78,0.7025185]
[1767849134067,7.94525901,137.83,137.78,0.7025185]
[1767849134871,0.17841311,137.82,137.78,0.7025185]
[1767849135067,0.17841311,137.82,137.77,0.7025185]
[1767849135760,0.68467113,137.81,137.77,0.7025185]
[1767849135970,0.18347569,137.8,137.77,0.7025185]
[1767849136568,7.4404763,137.8,137.77,0.7025185]
[1767849137375,0.67965917,137.79,137.76,0.7025185]
[1767849138991,0.18843753,137.78,137.74,0.7025185]
[1767849139285,0.19330062,137.76,137.71,2.86243731]
[1767849139490,0.19330062,137.76,137.72,0.7025185]
[1767849139665,2.35321943,137.76,137.72,0.7025185]
[1767849139984,0.66993249,137.75,137.72,0.7025185]
[1767849140865,10.10859504,137.77,137.73,0.7025185]
[1767849141277,0.17841311,137.76,137.73,0.7025185]
[1767849143492,7.43766504,137.76,137.73,0.7025185]
[1767849146988,9.59758385,137.76,137.72,0.7025185]
[1767849147290,0.68467113,137.75,137.72,0.7025185]
[1767849150978,10.10895558,137.76,137.72,0.7025185]
[1767849152272,0.66233962,137.74,137.71,0.6591594]
[1767849152590,0.20558388,137.73,137.7,0.6591594]
[1767849152977,3.58399145,137.73,137.69,0.6591594]
[1767849153977,0.20558388,137.73,137.69,0.6591594]
[1767849154496,0.17558389,137.73,137.69,0.6591594]
[1767849154794,10.63810181,137.75,137.71,0.6591594]
[1767849156584,11.30044143,137.75,137.71,0.6591594]
[1767849156790,4.04074719,137.75,137.71,7.92078858]
[1767849156987,11.30029845,137.75,137.72,0.6591594]
[1767849158892,11.29990332,137.76,137.72,0.6591594]
[1767849159401,7.92149575,137.76,137.72,0.6591594]
[1767849160877,11.29990332,137.76,137.72,0.6591594]
[1767849167105,3.37840757,137.75,137.72,0.6591594]
[1767849167298,10.63797942,137.75,137.72,0.6591594]
[1767849169401,10.81386331,137.75,137.72,0.6591594]
[1767849170723,3.55429146,137.75,137.72,0.6591594]
[1767849170919,0.65747506,137.74,137.69,0.6591594]
[1767849171208,0.66233962,137.72,137.68,0.6591594]
[1767849171800,11.30164925,137.73,137.69,0.6591594]
[1767849172001,7.92324168,137.73,137.69,0.6591594]
[1767849173205,11.30164925,137.73,137.69,0.6591594]
[1767849178507,13.92233962,137.75,137.7,0.6591594]
[1767849178706,5.4247361,137.74,137.7,0.6591594]
[1767849178894,17.30074719,137.75,137.7,0.6591594]
[1767849179094,5.42472827,137.74,137.7,0.6591594]
[1767849179398,17.30074719,137.75,137.7,0.6591594]
[1767849179597,8.8054698,137.74,137.7,0.6591594]
[1767849179805,3.37840757,137.74,137.7,0.6591594]
[1767849180213,13.26,137.75,137.7,0.6591594]
[1767849180514,4.03588263,137.77,137.72,0.6591594]
[1767849180714,5.42792725,137.76,137.73,0.6591594]
[1767849180904,11.29869464,137.78,137.73,0.6591594]
[1767849181216,5.42784725,137.77,137.73,0.6591594]
[1767849181517,0.17588389,137.77,137.73,0.6591594]
[1767849183414,5.43420888,137.76,137.73,0.6591594]
[1767849183718,0.17588389,137.77,137.73,0.6591594]
[1767849183899,5.43421024,137.76,137.73,0.6591594]
[1767849184098,0.17588389,137.77,137.73,0.6591594]
[1767849184299,5.43421024,137.76,137.73,0.6591594]
[1767849184514,0.17588389,137.77,137.73,0.6591594]
[1767849184714,5.43471105,137.76,137.73,0.6591594]
[1767849185016,10.81284605,137.77,137.73,0.6591594]
[1767849185217,5.43470969,137.76,137.73,0.6591594]
[1767849185398,10.81284605,137.77,137.73,0.6591594]
[1767849185596,5.43469921,137.76,137.73,0.6591594]
[1767849185800,10.81284605,137.77,137.73,0.6591594]
[1767849186016,5.43469921,137.76,137.73,0.6591594]
[1767849186204,10.81284605,137.77,137.73,0.6591594]
[1767849186507,5.43469921,137.76,137.73,0.6591594]
[1767849186705,10.81284605,137.77,137.73,0.6591594]
[1767849187016,5.43468878,137.76,137.73,0.6591594]
[1767849187323,10.81284605,137.77,137.73,0.6591594]
[1767849187515,5.43508904,137.76,137.73,0.6591594]
[1767849187702,10.81284605,137.77,137.73,0.6591594]
[1767849187903,5.43508768,137.76,137.73,0.6591594]
[1767849188200,10.81284605,137.77,137.73,0.6591594]
[1767849188395,5.43508768,137.76,137.73,0.6591594]
[1767849188615,10.81284605,137.77,137.73,0.6591594]
[1767849188820,5.43523628,137.76,137.73,0.6591594]
[1767849189024,10.81284605,137.77,137.73,0.6591594]
[1767849189203,5.43523492,137.76,137.73,0.6591594]
[1767849189501,10.81284605,137.77,137.73,0.6591594]
[1767849189701,5.43522925,137.76,137.73,0.6591594]
[1767849189901,10.81284605,137.77,137.73,0.6591594]
[1767849190101,5.43522925,137.76,137.73,0.6591594]
[1767849190322,10.81284605,137.77,137.73,0.6591594]
[1767849190504,5.43522224,137.76,137.73,0.6591594]
[1767849190819,10.81284605,137.77,137.73,0.6591594]
[1767849191023,5.43522224,137.76,137.73,0.6591594]
[1767849191320,10.81284605,137.77,137.73,0.6591594]
[1767849191514,5.43521523,137.76,137.73,0.6591594]
[1767849191704,10.81284605,137.77,137.73,0.6591594]
[1767849191903,5.43521387,137.76,137.73,0.6591594]
[1767849192111,10.81284605,137.77,137.73,0.6591594]
[1767849192409,5.43514941,137.76,137.73,0.6591594]
[1767849192610,10.81284605,137.77,137.73,0.6591594]
[1767849192811,5.43510441,137.76,137.73,0.6591594]
[1767849193022,10.81284605,137.77,137.73,0.6591594]
[1767849193209,5.43510441,137.76,137.73,0.6591594]
[1767849193414,10.80890798,137.77,137.73,0.6591594]
[1767849193606,0.66137375,137.76,137.72,10.63943569]
[1767849193813,11.30327963,137.77,137.73,0.70780131]
[1767849199132,7.92487206,137.77,137.73,0.70780131]
[1767849201833,0.17194582,137.76,137.73,0.70780131]
[1767849202326,10.63696216,137.77,137.7,18.43921193]
[1767849202327,0.1768401,137.74,137.7,0.70780131]
[1767849202537,3.55524767,137.74,137.7,0.70780131]
[1767849203826,10.81532437,137.74,137.7,0.70780131]
[1767849205733,7.4369168,137.74,137.7,0.70780131]
[1767849206637,0.1768401,137.74,137.71,0.70780131]
[1767849208537,7.43705819,137.74,137.71,0.70780131]
[1767849225960,0.1768401,137.74,137.71,0.70780131]
[1767849226162,7.25956476,137.75,137.71,0.70780131]
[1767849226354,7.25956476,137.75,137.7,7.26193207]
[1767849226355,0.12055166,137.73,137.69,7.94431112]
[1767849226556,0.12055166,137.73,137.7,0.68161957]
[1767849232482,0.7243289,137.74,137.71,0.68161957]
[1767849239782,0.7243289,137.74,137.7,7.26185107]
[1767849239979,0.7243289,137.74,137.71,0.68161957]
[1767849240877,0.7243289,137.74,137.7,7.94347064]
[1767849241080,0.7243289,137.75,137.71,0.68161957]
[1767849241263,0.1145145,137.73,137.7,7.94347064]
[1767849241467,0.7243289,137.74,137.71,0.68161957]
[1767849242582,0.7243289,137.74,137.7,7.97148897]
[1767849242885,0.72080441,137.75,137.71,0.7096379]
[1767849243181,5.55954183,137.74,137.71,0.7096379]
[1767849243382,0.11800375,137.74,137.71,0.7096379]
[1767849244885,7.98018841,137.76,137.71,0.7096379]
[1767849245066,5.44339352,137.75,137.71,0.7096379]
[1767849245266,5.44339352,137.74,137.71,0.7096379]
[1767849245489,7.98018841,137.76,137.71,0.7096379]
[1767849245682,5.44458311,137.75,137.71,0.7096379]
[1767849245987,5.44458311,137.74,137.71,0.7096379]
[1767849246185,0.11786095,137.75,137.71,0.7096379]
[1767849246377,5.44458347,137.74,137.71,0.6496379]
[1767849246578,0.11786095,137.75,137.71,0.6496379]
[1767849246768,5.44614668,137.74,137.71,0.6496379]
[1767849246968,0.11786095,137.75,137.71,0.6496379]
[1767849247174,5.44614668,137.74,137.71,0.6496379]
[1767849247389,5.44758295,137.73,137.71,0.6496379]
[1767849247590,7.37752514,137.75,137.71,0.6496379]
[1767849247787,5.44758431,137.74,137.71,0.6496379]
[1767849247989,5.44758159,137.73,137.71,0.6496379]
[1767849248290,0.72094865,137.74,137.71,0.6496379]
[1767849248484,5.62481881,137.73,137.7,0.71654397]
[1767849248665,0.17726095,137.73,137.7,0.71654397]
[1767849251476,0.72094865,137.74,137.7,0.71654397]
[1767849251678,5.44749296,137.73,137.7,0.71654397]
[1767849251976,0.72094865,137.75,137.7,0.71654397]
[1767849252176,5.44749024,137.74,137.7,0.71654397]
[1767849252384,5.44749024,137.73,137.7,0.71654397]
[1767849252585,0.72094865,137.75,137.7,0.71654397]
[1767849252787,5.44742568,137.74,137.7,0.71654397]
[1767849252991,5.44742568,137.73,137.7,0.71654397]
[1767849253290,0.72094865,137.75,137.7,0.71654397]
[1767849253490,5.44736335,137.74,137.71,0.71654397]
[1767849253693,7.43654673,137.76,137.71,13.54432314]
[1767849253694,0.17726095,137.76,137.71,13.54432314]
[1767849254778,0.17726095,137.76,137.71,20.80548031]
[1767849260579,0.72094865,137.75,137.7,13.26]
[1767849261386,0.72094865,137.75,137.68,69.16313406]
[1767849261581,0.72094865,137.75,137.69,13.26]
[1767849262984,0.72094865,137.74,137.69,13.26]
[1767849265703,0.72094865,137.73,137.69,13.26]
[1767849269300,0.72094865,137.73,137.69,20.52261791]
[1767849271396,0.72094865,137.75,137.69,20.52261791]
[1767849271705,6.16234299,137.74,137.69,20.52261791]
[1767849271880,0.72094865,137.74,137.69,20.52261791]
[1767849273488,0.71009341,137.75,137.69,20.52261791]
[1767849273689,5.44140618,137.74,137.69,20.52261791]
[1767849273888,0.71009341,137.75,137.69,20.52261791]
[1767849275206,0.71009341,137.75,137.7,0.28432314]
[1767849277995,0.71009341,137.75,137.71,7.26163677]
[1767849278195,0.71009341,137.76,137.71,7.26163677]
[1767849278994,0.71009341,137.76,137.72,13.26]
[1767849281301,0.71009341,137.77,137.72,20.52102732]
[1767849281500,5.42886257,137.76,137.73,0.28432314]
[1767849281714,7.25776405,137.79,137.73,13.54432314]
[1767849281715,0.71009341,137.78,137.73,13.54432314]
[1767849281926,5.42888252,137.77,137.73,13.54432314]
[1767849282104,0.71009341,137.78,137.73,13.54432314]
[1767849283516,0.71009341,137.78,137.73,20.80439798]
[1767849291303,7.96718118,137.8,137.73,38.95585372]
[1767849291617,0.71009341,137.79,137.73,38.95585372]
[1767849291998,0.71009341,137.81,137.74,4.963761]
[1767849292409,0.71009341,137.81,137.76,0.28432314]
[1767849292604,0.71009341,137.81,137.76,0.22432314]
[1767849293010,0.71009341,137.81,137.76,7.48314963]
[1767849299028,0.71009341,137.8,137.76,0.22432314]
[1767849300035,0.71009341,137.8,137.76,0.14216157]
[1767849300222,0.71009341,137.8,137.76,7.40103338]
[1767849304044,18.13894081,137.83,137.76,7.40103338]
[1767849304045,0.67951624,137.81,137.76,7.40103338]
[1767849305838,0.67951624,137.84,137.77,5.10592257]
[1767849306019,0.67951624,137.84,137.79,0.28432314]
[1767849306220,0.67951624,137.85,137.79,5.24808414]
[1767849306417,0.67951624,137.85,137.81,0.28432314]
[1767849306628,7.35338931,137.87,137.81,0.28432314]
[1767849306831,0.77951624,137.87,137.81,0.28432314]
[1767849307228,0.67951624,137.86,137.81,7.54034976]
[1767849308644,0.67951624,137.85,137.8,13.26]
[1767849309025,0.67951624,137.85,137.79,13.40216157]
[1767849309230,0.67951624,137.84,137.79,13.26]
[1767849311436,0.67951624,137.84,137.79,20.51728158]
[1767849318646,0.67951624,137.84,137.8,0.28432314]
[1767849319846,0.67951624,137.86,137.8,7.54069956]
[1767849320245,0.77951624,137.87,137.82,0.28432314]
[1767849320628,0.77951624,137.87,137.83,13.24]
[1767849322022,0.1,137.87,137.84,7.25478816]
[1767849322730,0.77951624,137.87,137.84,7.25478816]
[1767849323946,0.77951624,137.87,137.83,20.49508978]
[1767849326449,0.77951624,137.87,137.84,0.28432314]
[1767849329648,0.77951624,137.87,137.84,7.53891934]
[1767849332131,0.1,137.87,137.84,25.67588974]
[1767849332848,0.77266434,137.88,137.84,25.67588974]
[1767849346369,0.1,137.88,137.84,25.67588974]
[1767849346869,0.77266434,137.88,137.84,25.67588974]
[1767849347046,0.65093371,137.88,137.84,25.69762037]
[1767849347666,0.1,137.89,137.85,0.02173063]
[1767849347851,0.1,137.89,137.86,13.26173063]
[1767849348044,0.1,137.89,137.86,13.24]
[1767849348769,0.1,137.89,137.86,20.49364999]
[1767849348951,0.67266434,137.88,137.86,20.49364999]
[1767849351363,0.77266434,137.89,137.86,20.51538062]
[1767849353471,0.77266434,137.89,137.86,13.24]
[1767849353661,0.67266434,137.88,137.86,13.24]
[1767849353863,0.67266434,137.88,137.85,13.24]
[1767849354871,0.67266434,137.88,137.83,82.41693741]
[1767849358077,0.67266434,137.88,137.83,20.51693741]
[1767849358078,0.67266434,137.87,137.83,20.51693741]
[1767849364867,0.71444072,137.86,137.8,18.16334677]
[1767849365182,0.71444072,137.86,137.81,13.24]
[1767849365676,0.71444072,137.86,137.82,7.25583852]
[1767849365874,0.71444072,137.86,137.81,20.51790565]
[1767849367266,0.71444072,137.86,137.82,0.02173063]
[1767849367485,18.13235489,137.88,137.83,0.02173063]
[1767849367486,0.71444072,137.88,137.83,0.02173063]
[1767849368878,0.1,137.89,137.86,7.2754663]
[1767849369185,0.1,137.89,137.86,20.5154663]
[1767849369367,0.1,137.89,137.87,13.24]
[1767849369684,0.81444072,137.89,137.84,13.52432314]
[1767849369892,0.81444072,137.89,137.84,13.54605377]
[1767849370772,0.81444072,137.89,137.85,7.25424241]
[1767849372464,0.81444072,137.89,137.85,7.27597304]
[1767849375588,0.81444072,137.89,137.85,7.25424241]
[1767849376592,0.1,137.89,137.86,0.30605377]
[1767849376978,0.1,137.89,137.87,7.25320954]
[1767849377485,4.0875315,137.91,137.87,21.18517794]
[1767849377486,0.1,137.91,137.87,21.18517794]
[1767849378382,0.1,137.91,137.88,0.6919684]
[1767849378582,0.1,137.91,137.88,13.9319684]
[1767849379086,0.1,137.91,137.88,21.18451151]
[1767849379592,0.1,137.91,137.89,0.6919684]
[1767849379768,0.1,137.91,137.89,0.14216157]
[1767849380292,0.81444072,137.91,137.88,13.24]
[1767849381476,0.81444072,137.91,137.86,7.94550867]
[1767849381681,0.81444072,137.91,137.86,21.18550867]
[1767849382670,0.71444072,137.9,137.86,21.18550867]
[1767849385183,0.71444072,137.89,137.86,13.24]
[1767849387173,0.71444072,137.89,137.86,20.49367651]
[1767849391281,0.71444072,137.9,137.87,0.6919684]
[1767849392800,0.71444072,137.9,137.87,7.94491793]
[1767849395501,0.71444072,137.9,137.87,7.25294953]
[1767849395681,0.71444072,137.9,137.86,21.17772661]
[1767849396001,0.71444072,137.9,137.87,7.25320021]
[1767849396698,0.71444072,137.9,137.86,20.49359164]
[1767849399704,0.71444072,137.9,137.86,21.17780742]
[1767849406604,0.71837577,137.89,137.82,18.82263847]
[1767849406795,0.71837577,137.89,137.84,0.68421578]
[1767849407887,0.71837577,137.88,137.84,7.93891735]
[1767849408287,0.71837577,137.88,137.8,7.94098991]
[1767849408501,0.71837577,137.88,137.8,21.18098991]
[1767849408700,0.71837577,137.88,137.8,20.49677413]
[1767849408901,0.71837577,137.88,137.81,0.68421578]
[1767849409102,0.71837577,137.88,137.8,21.18098991]
[1767849409289,0.71837577,137.88,137.8,20.49677413]
[1767849409610,0.71837577,137.88,137.81,7.25625375]
[1767849410190,0.71837577,137.86,137.81,7.25625375]
[1767849411098,0.71837577,137.86,137.8,20.49684658]
[1767849411694,0.71837577,137.86,137.8,7.25684658]
[1767849412715,0.71837577,137.86,137.79,20.49729757]
[1767849412716,0.71837577,137.84,137.79,20.49729757]
[1767849413309,0.71837577,137.84,137.8,0.68421578]
[1767849414599,0.71837577,137.84,137.79,20.49729757]
[1767849414795,0.68837578,137.84,137.8,0.68421578]
[1767849415207,7.94325268,137.84,137.8,0.68421578]
[1767849416610,25.3825513,137.89,137.8,0.68421578]